Cogmind - Beta 16.1 @@@ ROGUE MODE // 2026.04.10 @ 15:20:24 Player: JuustuToug Result: Self-destructed Performance ------------- Evolutions (5) 2500 Regions Visited (6) 1200 Robots Destroyed (127) 635 Value Destroyed (4252) 4252 Prototype IDs (12) 240 Alien Tech Used (0) 0 Bonus (0) 0 TOTAL SCORE: 8827 Bonus ------- None Cogmind --------- Core Integrity 150/1000 Matter 290/300 Energy 315/315 System Corruption 12% Temperature Cool (0) Movement Rolling (135) Ox3 Location -5/Factory Parts ------- > --- POWER (1) -------- Neutrino Core > --- PROPULSION (5) --- Flexi-carbon Leg Improved VSS Leg Compact Wheel > --- UTILITY (9) ------ High-capacity Storage Unit Structural Scanner Machine Analyzer Improved Sensor Array Advanced Signal Interpreter Seismic Detector Improved Melee Analysis Suite Core Analyzer Hacking Suite > --- WEAPON (2) ------- Scythe > --- INVENTORY (20) --- Light Nuclear Core Light Angular Momentum Engine F-cell Engine IFF Parser Improved Melee Analysis Suite Microactuators Transmission Jammer Advanced ECM Suite Hardlight Generator Hacking Suite Hacking Suite Peak State ------------ > --- POWER ------------ F-cell Engine > --- PROPULSION ------- Carbon-fiber Leg Titanium Leg Titanium Leg Flexi-carbon Leg Flexi-carbon Leg > --- UTILITY ---------- High-capacity Storage Unit Machine Analyzer Improved Sensor Array Advanced Signal Interpreter Improved Melee Analysis Suite Core Analyzer Transmission Jammer Improved Medium Armor Plating Hacking Suite > --- WEAPON ----------- Scythe Scythe > --- INVENTORY -------- F-cell Engine Structural Scanner IFF Parser Seismic Detector Microactuators Microactuators Advanced ECM Suite Improved Reaction Control System Improved Light Armor Plating Improved Medium Armor Plating Hardlight Generator Hacking Suite Great Maul Katana Scythe [Rating: 67] Favorites ----------- Power F-cell Engine Engine F-cell Engine Power Core Light Nuclear Core Propulsion Carbon-fiber Leg Treads Light Treads Leg Carbon-fiber Leg Wheel Compact Wheel Utility High-capacity Storage Unit Device Seismic Detector Storage High-capacity Storage Unit Processor Machine Analyzer Hackware Hacking Suite Protection Hardened Medium Armor Plating Weapon Axe Impact Weapon Great Maul Slashing Weapon Axe Build | -11 -10 -9 -8 -7 -6 -5 ------- Run | Yrd Mat Mat Mat Fac Fac Fac Slots Evolved 10 | . . 2 2 2 2 2 Power . | . . . . . . . Propulsion 3 | . . 1 1 1 . . Utility 7 | . . 1 1 1 2 2 Weapon . | . . . . . . . Parts Attached 136 | 1 13 22 25 38 13 24 Power 18 | 1 2 3 4 4 2 2 Engine 11 | 1 2 3 1 2 2 . Core 7 | . . . 3 2 . 2 Reactor . | . . . . . . . Propulsion 59 | . 4 9 11 19 3 13 Treads 12 | . 2 8 1 . . 1 Leg 42 | . 2 . 10 19 3 8 Wheel 5 | . . 1 . . . 4 Hover . | . . . . . . . Flight . | . . . . . . . Utility 43 | . 3 8 7 11 8 6 Device 16 | . 1 2 2 6 3 2 Storage 3 | . 1 1 . 1 . . Processor 7 | . . 1 1 2 2 1 Hackware 2 | . . . 1 . 1 . Protection 15 | . 1 4 3 2 2 3 Artifact . | . . . . . . . Weapon 16 | . 4 2 3 4 . 3 Energy Gun . | . . . . . . . Energy Cannon . | . . . . . . . Ballistic Gun . | . . . . . . . Ballistic Cannon . | . . . . . . . Launcher . | . . . . . . . Special Weapon . | . . . . . . . Impact Weapon 1 | . . . . . . 1 Slashing Weapon 15 | . 4 2 3 4 . 2 Piercing Weapon . | . . . . . . . Special Melee Weapon . | . . . . . . . Unidentified Prototypes 4 | . . 1 . 1 1 1 Corrupted Parts 1 | . . . . . . 1 System Corruption 3 | . . . . . . 3 Parts Lost 50 | . 3 3 5 8 4 27 Power 3 | . 1 . . . . 2 Propulsion 28 | . 2 1 1 5 3 16 Utility 14 | . . 2 3 3 1 5 Weapon 5 | . . . 1 . . 4 Highest Loss Streak 14 | . 2 1 2 6 2 14 To Critical Strikes . | . . . . . . . Average Backups 17 | 2 3 17 19 19 19 14 Power 1 | . . 1 . 1 1 1 Propulsion 4 | 1 . 5 7 5 4 . Utility 8 | . 2 6 6 9 11 10 Weapon 3 | . . 3 4 3 3 2 Tool/Special . | . . . . . . . Unused Backups 34 | . 1 4 10 10 3 6 Power 6 | . . 1 2 . 1 2 Propulsion 9 | . 1 1 4 3 . . Utility 16 | . . 2 2 6 2 4 Weapon 2 | . . . 1 1 . . Tool/Special 1 | . . . 1 . . . Average Slot Usage (%) 96 | . 70 99 98 99 99 88 Engine 5 | . 11 11 2 4 6 3 Core 2 | . . . 6 2 . 1 Treads 6 | . 3 29 4 . . . Leg 25 | . 15 2 30 37 32 19 Device 10 | . . 9 17 8 9 10 Storage 7 | . 8 11 9 7 6 5 Processor 9 | . . . . 13 19 22 Hackware 2 | . . . . 2 5 5 Protection 6 | . 6 12 8 4 2 3 Slashing Weapon 16 | . 22 21 18 15 13 8 Peak Build Rating 67 | 1 7 19 34 49 58 67 Average Rating 36 | . 5 16 29 43 53 56 On Entrance 22 | . 1 7 18 34 45 52 Avg Prop Armor Cover (%) 13 | . . 21 6 . . 18 Naked Turns . | . . . . . . . Heaviest Build 67 | 3 15 64 67 61 66 67 Greatest Support 89 | 3 40 60 63 88 86 89 Greatest Overweight (x) 19 | . 2 3 1 . . 19 Average Overweight (x) . | . . . . . . . Largest Inventory Capacity 20 | 5 8 20 20 20 20 20 Average Capacity 19 | 5 6 19 20 20 20 20 Most Carried 20 | 4 8 20 20 20 20 20 Average Carried 17 | 3 3 17 19 19 19 14 Final Capacity 20 | 5 8 20 20 20 20 20 Final Carried 20 | 4 8 19 20 20 20 11 Class Distribution -------------------- 46% | Mutant 26% | Scavenger-Mutant 15% | Gladiator 9% | Scientist-Gladiator Dominant Class ---------------- Mutant | -10/Materials Scavenger-Mutant | -9/Materials Scavenger-Mutant | -8/Materials Mutant | -7/Factory Gladiator | -6/Factory Scientist-Gladiator | -5/Factory Resources | -11 -10 -9 -8 -7 -6 -5 ----------- Run | Yrd Mat Mat Mat Fac Fac Fac Matter Collected 2465 | 194 129 205 409 540 576 412 Remotely . | . . . . . . . Salvage Created 5809 | . 275 1008 930 1271 1120 1205 Parts 353 | . 20 74 50 78 67 64 Haulers Intercepted 3 | . . 2 1 . . . Recyclers Shooed 3 | . 1 . . . . 2 Parts Field Recycled . | . . . . . . . Retrieved Matter . | . . . . . . . Parts Self-Destructed . | . . . . . . . Prevented . | . . . . . . . Parts Restored . | . . . . . . . Kills | -11 -10 -9 -8 -7 -6 -5 ------- Run | Yrd Mat Mat Mat Fac Fac Fac Combat Hostiles Destroyed 85 | . 5 15 14 21 12 18 Melee 82 | . 5 15 14 21 12 15 AOE 3 | . . . . . . 3 Classes Destroyed 16 | . 5 6 3 1 . 1 Worker 5 | . . 2 . . 2 1 Builder 7 | . 1 4 . 2 . . Tunneler 6 | . 2 1 1 2 . . Hauler 3 | . . 2 1 . . . Recycler 11 | . 1 1 . 3 4 2 Mechanic 2 | . . . 1 1 . . Operator 5 | . . 1 1 1 1 1 Watcher 3 | . . 1 2 . . . Swarmer 20 | . 3 3 . 7 3 4 Grunt 26 | . 2 5 5 8 . 6 Brawler 2 | . . . 1 1 . . Duelist 1 | . . 1 . . . . Sentry 16 | . . 6 5 1 3 1 Specialist 4 | . . . . . . 4 Hunter 4 | . . . 3 1 . . Programmer 12 | . . . . 3 6 3 Best Kill Streak 7 | . 4 7 4 5 4 4 Combat Bots Only 5 | . 4 5 3 4 3 4 Max Kills in Single Turn 3 | . 1 1 1 1 1 3 Gunslinging . | . . . . . . . Exploded 3 | . . . . . . 3 Melee 1 | . 1 1 1 1 1 1 Uniques/NPCs Destroyed . | . . . . . . . Combat | -11 -10 -9 -8 -7 -6 -5 -------- Run | Yrd Mat Mat Mat Fac Fac Fac Hostile Shots Fired 970 | . 108 80 119 241 160 262 Missed 301 | . 35 13 23 83 75 72 Hits 669 | . 73 67 96 158 85 190 Melee 17 | . . 2 3 12 . . Projectile 652 | . 73 65 93 146 85 190 AOE 1 | . . . . 1 . . Critical Strikes 27 | . . 2 5 4 2 14 Part Disruptions 3 | . . . . . . 3 Damage Taken 10658 | . 695 882 1442 2552 1215 3872 Core 2037 | . 211 151 225 354 246 850 Absorbed by Shields . | . . . . . . . Redirected to Shielding 5 | . . 5 . . . . Regen/Repaired (Parts) 70 | . . . 70 . . . Core Remaining (%) 59 | 100 15 62 59 49 71 . Volleys Fired . | . . . . . . . Largest . | . . . . . . . Hottest . | . . . . . . . Shots Fired . | . . . . . . . Gun . | . . . . . . . Cannon . | . . . . . . . Launcher . | . . . . . . . Special . | . . . . . . . Kinetic . | . . . . . . . Thermal . | . . . . . . . Explosive . | . . . . . . . Electromagnetic . | . . . . . . . Robot Hit Streak . | . . . . . . . Robot Miss Streak . | . . . . . . . Penetration Max . | . . . . . . . Secondary Targets . | . . . . . . . Shots Hit Robots 316 | . 17 68 58 75 37 61 Core Hits 146 | . 10 23 20 35 22 36 Critical Kills . | . . . . . . . Critical Parts Destroyed . | . . . . . . . Critical Strikes 28 | . . 6 7 6 4 5 Sever 28 | . . 6 7 6 4 5 Melee Attacks 534 | . 35 95 92 136 78 98 Impact 3 | . . . . . . 3 Slashing 531 | . 35 95 92 136 78 95 Piercing . | . . . . . . . Sneak Attacks 50 | . 6 14 6 8 10 6 Combat Hostiles . | . . . . . . . Follow-up Attacks 43 | . 3 10 14 5 7 4 Damage Inflicted 12260 | . 559 2578 2112 2587 1504 2920 Guns . | . . . . . . . Cannons . | . . . . . . . Explosions 697 | . . . . . . 697 Melee 11510 | . 535 2578 2112 2587 1491 2207 Ramming 53 | . 24 . . . 13 16 Kinetic . | . . . . . . . Thermal . | . . . . . . . Explosive 697 | . . . . . . 697 Electromagnetic . | . . . . . . . Impact 43 | . . . . . . 43 Slashing 11467 | . 535 2578 2112 2587 1491 2164 Piercing . | . . . . . . . Highest Corruption 12 | . . 2 1 3 2 12 Average Corruption 2 | . . 1 1 1 1 5 Corruption Purged 1 | . . . . 1 . . Corruption Blocked . | . . . . . . . Effects 65 | . . 6 12 21 4 22 Message Errors 18 | . . 3 1 7 1 6 Matter Fused 15 | . . . 6 3 1 5 Heat Flow Errors 8 | . . . . 4 1 3 Energy Discharges 4 | . . . . 2 . 2 Parts Rejected 2 | . . . . . . 2 Parts Fused 2 | . . 1 1 . . . Data Loss (minor) 9 | . . 1 3 3 . 2 Data Loss (major) 4 | . . 1 1 1 . 1 Alerts 3 | . . . . 1 1 1 Overload Shots . | . . . . . . . Overflow Damage 830 | . 40 244 115 81 157 193 Projectiles . | . . . . . . . Explosions 82 | . . . . . . 82 Melee 748 | . 40 244 115 81 157 111 Knockbacks 1 | . . . . . . 1 Impact 1 | . . . . . . 1 Kinetic . | . . . . . . . Secondary . | . . . . . . . Self-Inflicted Damage 239 | . 11 . . . . 228 Shots 3 | . . . . . . 3 Rammed 5 | . 5 . . . . . Targets Rammed 9 | . 5 . . . 2 2 Kicked 4 | . . . . . 2 2 Crushed . | . . . . . . . Highest Temperature 241 | . . . 25 241 202 200 Average Temperature 78 | . . . 9 98 87 78 Received Heat Transfer 2612 | . 99 300 576 480 226 931 Siege Activations . | . . . . . . . Martial Activations . | . . . . . . . Shielding Activations . | . . . . . . . Robots Disrupted . | . . . . . . . Combat Hostiles . | . . . . . . . Robots Corrupted . | . . . . . . . Combat Hostiles . | . . . . . . . Parts Fried . | . . . . . . . Impact Corruptions 1 | . . . . . . 1 Robots Melted . | . . . . . . . Combat Hostiles . | . . . . . . . Parts Melted . | . . . . . . . Heat Transferred . | . . . . . . . Parts Sabotaged . | . . . . . . . Parts Stolen . | . . . . . . . Parts Stripped . | . . . . . . . Power Chain Reactions . | . . . . . . . Alert | -11 -10 -9 -8 -7 -6 -5 ------- Run | Yrd Mat Mat Mat Fac Fac Fac Maximum Alert Level 1 | . . 1 . 1 . . Low Security (%) 88 | 100 100 68 100 80 100 100 Level 1 11 | . . 31 . 19 . . Level 2 . | . . . . . . . Level 3 . | . . . . . . . Level 4 . | . . . . . . . Level 5 . | . . . . . . . High Security . | . . . . . . . Max Security . | . . . . . . . Peak Influence 259 | . 85 256 110 259 149 171 Initial 124 | . . 2 90 18 124 58 Average 72 | . 28 85 54 100 77 34 Influence Increases 3540 | . 218 574 591 801 595 761 Destroy 0b10 Robot/C 1700 | . 100 300 280 420 240 360 Destroy 0b10 Robot/NC 210 | . 20 60 30 45 35 20 Destroy Leader 482 | . 20 86 106 90 100 80 Successful Hack 289 | . 33 20 45 86 75 30 Select Force Hacks 60 | . . . 30 30 . . Disable Machine 150 | . . 15 15 30 30 60 Destroy Structure 139 | . . 3 10 25 25 76 Partial Spotted 15 | . . . 15 . . . Lose Combat Pursuer 495 | . 45 90 60 75 90 135 Influence Decreases 3379 | . 211 367 762 589 729 721 Entered New Map 348 | . . 5 124 25 131 63 Time Decay 2478 | . 181 352 598 442 538 367 Lost Part 410 | . 30 10 40 70 40 220 Lost Ally 30 | . . . . . 20 10 Purge Threat 113 | . . . . 52 . 61 Squads Dispatched 28 | . 1 1 2 9 7 8 Investigation 8 | . 1 . 1 4 . 2 Extermination 9 | . . . . 4 4 1 Reinforcement 11 | . . 1 1 1 3 5 Assault . | . . . . . . . Garrison . | . . . . . . . Intercept . | . . . . . . . Searches Triggered . | . . . . . . . Construction Impeded 1 | . . . . . . 1 Haulers Reinforced . | . . . . . . . Active Scanning Responses . | . . . . . . . Cargo Convoy Interrupts 1 | . . . . . 1 . Stealth | -11 -10 -9 -8 -7 -6 -5 --------- Run | Yrd Mat Mat Mat Fac Fac Fac Distress Signals 8 | . 1 1 2 1 2 1 Communications Jammed . | . . . . . . . Distress Signals . | . . . . . . . Times Spotted 186 | . 8 28 25 42 45 38 Peak Tracking Total 12 | . 7 8 4 5 12 10 Tactical Retreats 27 | . 1 5 4 5 7 5 ECM-based Alert Blocks 15 | . . . . 6 6 3 Traps | -11 -10 -9 -8 -7 -6 -5 ------- Run | Yrd Mat Mat Mat Fac Fac Fac Traps Triggered 4 | . . 2 . . 2 . Indirectly . | . . . . . . . Trap Hack Attempts . | . . . . . . . Triggered . | . . . . . . . Disarmed . | . . . . . . . Reprogrammed . | . . . . . . . Reused . | . . . . . . . Traps Extracted . | . . . . . . . Installed . | . . . . . . . Triggered . | . . . . . . . Machines | -11 -10 -9 -8 -7 -6 -5 ---------- Run | Yrd Mat Mat Mat Fac Fac Fac Machines Disabled 10 | . . 1 1 2 2 4 Max in Single Turn 3 | . . 1 1 1 1 3 Garrison Access 2 | . . . . 1 . 1 Machines Repaired . | . . . . . . . Machines Dismantled . | . . . . . . . Machines Sabotaged . | . . . . . . . Overloaded Fab Kills . | . . . . . . . Hacking | -11 -10 -9 -8 -7 -6 -5 --------- Run | Yrd Mat Mat Mat Fac Fac Fac Machines Accessed 61 | . 5 9 13 15 9 10 Terminals 43 | . 5 6 9 6 8 9 Fabricators 3 | . . . . 3 . . Repair Stations 3 | . . 1 1 1 . . Recycling Units 2 | . . . 1 1 . . Scanalyzers 6 | . . 2 1 2 1 . Garrison Access 4 | . . . 1 2 . 1 Total Hacks 186 | . 15 34 38 46 28 25 Successful 98 | . 8 21 16 28 15 10 Failed 85 | . 6 12 22 17 13 15 Catastrophic 15 | . 2 3 2 3 4 1 Database Lockouts 3 | . 1 1 . 1 . . Manual 93 | . 8 15 20 16 16 18 Terminals 126 | . 15 19 27 19 22 24 Fabricators 8 | . . . . 8 . . Repair Stations 8 | . . 1 6 1 . . Recycling Units 2 | . . . 1 1 . . Scanalyzers 34 | . . 14 2 12 6 . Garrison Access 8 | . . . 2 5 . 1 Terminal Hacks 29 | . 6 3 8 4 3 5 Part Schematic 4 | . . . 2 1 . 1 Prototype ID Bank 4 | . 2 . 1 1 . . Level Access Points 2 | . 1 . . . 1 . Branch Access Points 2 | . . 1 1 . . . Emergency Access Points 1 | . . 1 . . . . Terminal Index 4 | . . . 1 1 1 1 Fabricator Index 1 | . . . . . . 1 Scanalyzer Index 2 | . 1 . . . 1 . Alert Level 1 | . . . 1 . . . Unreport Threat 2 | . . . . 1 . 1 Registered Components 3 | . 1 1 1 . . . Registered Prototypes 1 | . . . . . . 1 Zone Layout 2 | . 1 . 1 . . . Fabricator Hacks 7 | . . . . 7 . . Network Status 1 | . . . . 1 . . Load Schematic 3 | . . . . 3 . . Build 3 | . . . . 3 . . Repair Station Hacks 3 | . . . 3 . . . Scan Component 2 | . . . 2 . . . Repair 1 | . . . 1 . . . Recycling Unit Hacks . | . . . . . . . Scanalyzer 30 | . . 13 1 10 6 . Insert Component 10 | . . 4 . 5 1 . Analyze 9 | . . 4 . 4 1 . Retrieve Study 11 | . . 5 1 1 4 . Garrison Access Hacks 2 | . . . . 1 . 1 Seal Access 2 | . . . . 1 . 1 Unauthorized Hacks 27 | . 2 5 4 6 6 4 Terminals 24 | . 2 4 3 5 6 4 Assimilate 5 | . . . . 1 3 1 Botnet 13 | . 2 2 2 3 2 2 Operators 6 | . . 2 1 1 1 1 Fabricators . | . . . . . . . Repair Stations 1 | . . 1 . . . . Mechanics 1 | . . 1 . . . . Recycling Units 2 | . . . 1 1 . . Tunnel 2 | . . . 1 1 . . Scanalyzers . | . . . . . . . Garrison Access . | . . . . . . . Data Cores Recovered . | . . . . . . . Used . | . . . . . . . Hacking Detections 54 | . 5 6 12 14 8 9 Full Trace Events 6 | . 1 . . 3 . 2 Feedback Events . | . . . . . . . Feedback Blocked . | . . . . . . . Robot Schematics Acquired . | . . . . . . . Robots Built . | . . . . . . . Authchips . | . . . . . . . Time . | . . . . . . . Total Robot Build Rating . | . . . . . . . Part Schematics Acquired 13 | . . 4 2 5 1 1 Parts Built 6 | . . . . 6 . . Authchips . | . . . . . . . Time 168 | . . . . 168 . . Total Part Build Rating 24 | . . . . 24 . . Part Studies Acquired 11 | . . 5 1 1 4 . Parts Repaired 1 | . . . 1 . . . Time 53 | . . . 53 . . . Parts Recycled . | . . . . . . . Recycled Matter . | . . . . . . . Retrieved Matter . | . . . . . . . Retrieved Components . | . . . . . . . Parts Scanalyzed 9 | . . 4 . 4 1 . Part Schematics Acquired 9 | . . 4 . 4 1 . Parts Damaged 1 | . . . . 1 . . Bothacking | -11 -10 -9 -8 -7 -6 -5 ------------ Run | Yrd Mat Mat Mat Fac Fac Fac Used RIF Installer . | . . . . . . . Robots Hacked . | . . . . . . . Non-combat . | . . . . . . . Combat . | . . . . . . . Robot Hacks Applied . | . . . . . . . Relay Couplers Released . | . . . . . . . Fabnet Peak Effective % . | . . . . . . . Robots Rewired . | . . . . . . . Allies Hacked . | . . . . . . . Hacks Repelled . | . . . . . . . Allies | -11 -10 -9 -8 -7 -6 -5 -------- Run | Yrd Mat Mat Mat Fac Fac Fac Total Allies 3 | . . . . . 2 1 Largest Group 1 | . . . . . 1 1 Highest-Rated Group 26 | . . . . . 26 10 Highest-Rated Ally 26 | . . . . . 26 10 Total Orders 6 | . . . . . 4 2 STAY 3 | . . . . . 2 1 FOLLOW 3 | . . . . . 2 1 Ally Attacks . | . . . . . . . Total Damage . | . . . . . . . Kills . | . . . . . . . Allies Corrupted . | . . . . . . . Allies Melted . | . . . . . . . Intel | -11 -10 -9 -8 -7 -6 -5 ------- Run | Yrd Mat Mat Mat Fac Fac Fac Active Infowar (turns) 9198 | . 20 1562 2164 2611 1691 1150 Optics 2 | . . . 2 . . . Sensors 778 | . . . . . . 778 Structural 3763 | . . . 1994 484 850 435 Seismic 7409 | . 20 1562 2035 2352 1308 132 Machine Analysis 5450 | . . . . 2609 1691 1150 Jamming 53 | . . . . . . 53 ECM 321 | . . . . 169 110 42 Robot Analysis Total . | . . . . . . . Derelict Logs Recovered . | . . . . . . . Drone Launches . | . . . . . . . Drone Recoveries . | . . . . . . . Exploration | -11 -10 -9 -8 -7 -6 -5 ------------- Run | Yrd Mat Mat Mat Fac Fac Fac Turns Passed 9943 | 31 427 1869 2164 2611 1691 1150 Spaces Moved 5875 | 47 337 799 995 1810 1207 680 Core 213 | 47 165 . . . . 1 Treads 845 | . 4 688 150 . . 3 Legs 4570 | . 168 . 845 1810 1207 540 Wheels 247 | . . 111 . . . 136 Hover . | . . . . . . . Flight . | . . . . . . . Fastest Speed 50 | 50 50 90 101 93 107 105 Average Speed 125 | 50 87 165 161 108 110 120 Slowest Speed 1000 | 50 160 240 190 120 123 1000 Overloaded Moves . | . . . . . . . Propulsion Burnouts . | . . . . . . . Robots Hopped . | . . . . . . . Potential Cave-ins . | . . . . . . . Cave-ins Triggered . | . . . . . . . Exploration Rate (%) 40 | 3 52 60 64 42 36 23 Regions Visited 6 Branch Regions . Pre-discovered Areas 2 | . . . 1 1 . . Known Exits Taken 3 | . 1 1 . . 1 . Unknown Exits Taken 3 | 1 . . 1 1 . . Scrap Searched . | . . . . . . . Spaces Dug 82 | . . 3 10 25 25 19 Terrain Destroyed 100 | . . 3 10 25 25 37 Melee 82 | . . 3 10 25 25 19 Projectile . | . . . . . . . AOE 18 | . . . . . . 18 Terrain Rammed . | . . . . . . . Walls Destroyed . | . . . . . . . Machines Disabled . | . . . . . . . Actions | -11 -10 -9 -8 -7 -6 -5 --------- Run | Yrd Mat Mat Mat Fac Fac Fac Total 7697 | 53 403 1204 1428 2266 1457 886 Wait 884 | 2 . 257 278 184 107 56 Move 5870 | 46 336 798 994 1809 1207 680 Hop . | . . . . . . . Pick Up 123 | 4 10 29 22 44 8 6 Fast Attach 44 | 1 8 3 8 4 5 15 Attach 52 | . 5 6 7 12 3 19 Detach 9 | . 2 2 1 1 . 3 Swap 143 | . 1 16 20 39 54 13 Drop 109 | . 5 17 26 48 11 2 Fire . | . . . . . . . Melee 455 | . 31 76 72 125 61 90 Ram 5 | . 5 . . . . . Kick 3 | . . . . . 1 2 Crush . | . . . . . . . Escape Stasis . | . . . . . . . Rewire . | . . . . . . . Trap . | . . . . . . . Miscellaneous . | . . . . . . . Route ------- -11/Scrapyard -10/Materials (discovered 5 exits: *Mat x3 / [*Min] / [*Sub]) -9/Materials (discovered 4 exits: *Mat x3 / *Min) -8/Materials (discovered 4 exits: *Fac x2 / *Sto x2) -7/Factory (discovered 3 exits: *Fac x2 / [*Low]) -6/Factory (discovered 4 exits: *Fac x4) -5/Factory (discovered 1 exit: *Upp) History --------- Turn | Location | Event 4 | -11/Scrapyard | Discovered new exit (range 15) 32 | -11/Scrapyard | Entered Materials 170 | -10/Materials | Core integrity fell below 50% 200 | -10/Materials | Core integrity fell below 20% 286 | -10/Materials | Identified exit to Materials 314 | -10/Materials | Build established: Mutant 371 | -10/Materials | Discovered new exit (range 7) 440 | -10/Materials | Discovered new exit (range 13) 442 | -10/Materials | Central database locked down 459 | -10/Materials | Entered another Materials area 459 | -9/Materials | Evolved 2 slots: Propulsion x1, Utility x1 845 | -9/Materials | Discovered new exit (range 16) 948 | -9/Materials | Build established: Scavenger-Mutant 1357 | -9/Materials | Discovered new exit (range 16) 1497 | -9/Materials | Build established: Mutant 1775 | -9/Materials | Discovered new exit (range 13) 2157 | -9/Materials | Central database locked down 2157 | -9/Materials | Identified exit to Mines 2242 | -9/Materials | Discovered new exit (range 5) 2265 | -9/Materials | Identified exit to Materials 2324 | -9/Materials | Build established: Scavenger-Mutant 2328 | -9/Materials | Entered another Materials area 2328 | -8/Materials | Evolved 2 slots: Propulsion x1, Utility x1 2851 | -8/Materials | Discovered new exit (range 11) 3167 | -8/Materials | Discovered new exit (range 2) 3334 | -8/Materials | Discovered new exit (range 14) 3714 | -8/Materials | Identified exit to Storage 3901 | -8/Materials | Repaired Broken Carbon-fiber Leg+ 4112 | -8/Materials | Build established: Mutant 4492 | -8/Materials | Entered Factory 4492 | -7/Factory | Evolved 2 slots: Propulsion x1, Utility x1 4697 | -7/Factory | Discovered new exit (range 7) 5142 | -7/Factory | Lost 6 parts (4n2u) 5572 | -7/Factory | Central database locked down 5785 | -7/Factory | Discovered new exit (range 9) 5862 | -7/Factory | Discovered new exit (range 15) 6500 | -7/Factory | Core integrity fell below 50% 6721 | -7/Factory | Fabricated Microactuators? 6794 | -7/Factory | Fabricated Microactuators? 7038 | -7/Factory | Fabricated Imp. Melee Analysis Suite? 7103 | -7/Factory | Entered another Factory area 7103 | -6/Factory | Evolved 2 slots: Utility x2 7416 | -6/Factory | Build established: Gladiator 8116 | -6/Factory | Identified exit to Factory 8517 | -6/Factory | Watched by a mysterious "MATRIX" hacker. 8601 | -6/Factory | Cargo convoy interrupted 8794 | -6/Factory | Entered another Factory area 8794 | -5/Factory | Evolved 2 slots: Utility x2 8825 | -5/Factory | Build established: Scientist-Gladiator 9208 | -5/Factory | Lost 3 parts (3n) 9305 | -5/Factory | Discovered new exit (range 3) 9312 | -5/Factory | Identified exit to Upper Caves 9589 | -5/Factory | Lost 14 parts (2p5n5u2w) 9693 | -5/Factory | Lost 5 parts (3n2w) 9710 | -5/Factory | Core integrity fell below 50% 9733 | -5/Factory | System corruption reached 10% 9924 | -5/Factory | Core integrity fell below 20% 9944 | -5/Factory | Self-destructed Last Messages --------------- 09931_ K-01 Serf collects debris. 09933_ Critical hit (Burn: +37). 09934_ The unstable cave ceiling collapses. 09935_ K-01 Serf collects debris. 09935_ Critical hit (Burn: +37). 09936_ K-01 Serf collects debris. 09938_ G-67 Veteran overheating. 09938_ K-01 Serf collects debris. 09939_ G-67 Veteran overheating. 09940_ K-01 Serf collects debris. 09941_ G-67 Veteran heat short circuits Field Laser. 09941_ K-01 Serf collects debris. 09941_ Destroyed Lgt. Antimatter Reactor. 09941_ G-67 Veteran destroyed. 09942_ System corrupted: Component data lost. 09942_ K-01 Serf collects debris. 09943_ M-28 Smith fits Backup Propulsion III on G-50 Soldier. 09943_ Imp. VSS Leg destroyed. Map ----- +----------------------------------------------------+ | ?????????????????????????????????????????????????? | | ?????????????????????????????????????????????????? | | ?????????????????????????????????????????????????? | | ?????????????????????????????????????????????????? | | ?????????????????????????????????????????????????? | | ?????????????????????????????????????????????????? | | ?????????????????????????????????????????????????? | | ?????????????????????????????????????????????????? | | ?????????????????????????????????????????????????? | | ?????????????????????????????????????????????????? | | ????????????????????H????????????????????????????? | | ??????????????## ????????????????????????????????? | | ??????????????## ?????????????????????????????? | | ??????????????## ????????????????????????????? | | ???????????????? ? #############???????????? | | ????????????????## ###############???????????? | | ????????????????## # ##???????????? | | ????????????????## #""" ##???????????? | | ????????????????## #"R ############?? | | ????????????????## #""" k ############?? | | ?????????? ####### # ##?? | | ??????????######## # ##?? | | ?????????? k =# ##?? | | ?????????? # ##?? | | ?????????? ! # "" "" ##?? | | ?????????? @ ; ""S"" ##?? | | ?????????? % # """" ##?? | | ???????????####### %g% # #### | | ??????????? ### # #m # #####+######### | | ?????????????x??## * k | | ??????????????x?## | | ????????????????## ||| "" | | ????????????????## ||| "" | | ????????????????## || T" | | ????????????????## """ "" ##########/## | | ????????????????## """ "" ##### | | ????????????????## """ ##### """"""" | | ????????????????## """ ==/ ##### """"""" | | ????????????????## =!/ / """"""" | | ????????????????## """ """ """ =/ ##### """"""" | | ????????????????## """ """ """ ? ##### "%" | | ???????????????? ?""" """ """?????????## """"""" | | ????????????????? ?""" """ """?????????## """"""" | | ?????????????????????? ??? ???????????## """"""" | | ????????????????????""" """?"""?"""?????## """"""" | | ????????????????????"""?"""?"""?"""?????## | | ????????????????????"""?"""?"""?"""?????## | | ????????????????????"""?"""?"""?"""?????###+###### | | ???????????????????????????????????????? | | ????????????????????"""?"""?"""?"""?????????????"" | +----------------------------------------------------+ Best States ------------- Heat Dissipation 40 Energy Generation 19 Energy Capacity 500 Matter Stores 300 Matter Capacity 300 Sight Range 16 Robot Scan Range 15 Terrain Scan Density 10 ECM Strength 2 Jamming Range 12 Armor Coverage 450 Weapon Shielding 33 Melee Speed Boost 20 Evasion (%) 65 Melee Accuracy 6 Core Analysis 6 Recoil Reduction 3 Offensive Hacking 10 Item Schematics ----------------- Hcp. Storage Unit | -9/Materials | Scanalyzed Seismic Detector | -9/Materials | Scanalyzed Lgt. Armor Plating | -9/Materials | Scanalyzed Axe | -9/Materials | Scanalyzed Melee Analysis Suite | -8/Materials | Hacked Actuator Array | -8/Materials | Hacked Triangulator | -7/Factory | Hacked Katana | -7/Factory | Scanalyzed Microactuators | -7/Factory | Scanalyzed Imp. Melee Analysis Suite | -7/Factory | Scanalyzed Hacking Suite | -7/Factory | Scanalyzed Imp. Reaction Control System | -6/Factory | Scanalyzed Adv. Melee Analysis Suite | -5/Factory | Hacked Robot Schematics ------------------ None Fabricated ------------ Microactuators | x2 | -7/Factory Microactuators | x2 | -7/Factory Imp. Melee Analysis Suite | x2 | -7/Factory Repaired ---------- Carbon-fiber Leg | 36% | -8/Materials | Broken Studied --------- Mining Claw | -9/Materials | Hacked Aluminum Leg | -9/Materials | Hacked Com. Wheel | -9/Materials | Hacked Imp. Aluminum Leg | -9/Materials | Hacked Lgt. Treads | -9/Materials | Hacked Carbon-fiber Leg | -8/Materials | Hacked Imp. Carbon-fiber Leg | -7/Factory | Hacked Flexi-carbon Leg | -6/Factory | Hacked Titanium Leg | -6/Factory | Hacked Scythe | -6/Factory | Hacked Katana | -6/Factory | Hacked Alien Tech Used ----------------- None Achievements -------------- None Challenges ------------ None Game ------ Seed MassAlphaRouter Manual? 0 Play Time 01:23:27 Cumulative 408.0 hours Start 2026.04.05 @ 17:06:00 End 2026.04.10 @ 15:20:24 Sessions 3 Manual Loads 0 Difficulty Rogue Special Mode None Game No. 249 Rogue 249 Adventurer 0 Explorer 0 Win Type - Total 17 Types 9/1/3/2/1/0/0/1/0/0 Lore% 93 Gallery% 81 Achievement% 71 Wizard Run 0 Options --------- Layout 1 ASCII 0 Keyboard 0 Movement Mouse Keybinds 0 Fullscreen 2 Font 32/SmallcapsGlow Map View 50x35 Zoom Use 0% Tactical HUD 1 Map Filters NONE Filters NONE Steam 1 RUN: 13608342-7c2a-4596-8efe-e97e13c08f28